Cogmind - Beta 16 @@@ ROGUE MODE // 2025.12.15 @ 21:52:21 Player: P9H Result: Destroyed by G-47 Trooper with Particle Gun Performance ------------- Evolutions (0) 0 Regions Visited (1) 200 Robots Destroyed (16) 80 Value Destroyed (400) 400 Prototype IDs (0) 0 Alien Tech Used (0) 0 Bonus (0) 0 TOTAL SCORE: 680 Bonus ------- None Cogmind --------- Core Integrity 0/250 Matter 285/300 Energy 104/125 System Corruption 2% Temperature Cool (29) Movement Treading (240) Ox1 Location -10/Materials Parts ------- > --- POWER (1) -------- Light Ion Engine > --- PROPULSION (2) --- Light Treads Light Treads > --- UTILITY (2) ------ High-capacity Storage Unit Structural Scanner > --- WEAPON (2) ------- Small Laser Light Assault Rifle > --- INVENTORY (20) --- Ion Engine Light Ion Engine Compact Wheel Heat Sink Structural Scanner Light Armor Plating Small Laser Mining Claw Peak State ------------ > --- POWER ------------ Light Ion Engine > --- PROPULSION ------- Compact Wheel Compact Wheel > --- UTILITY ---------- High-capacity Storage Unit Structural Scanner > --- WEAPON ----------- Light Assault Rifle Light Assault Rifle > --- INVENTORY -------- Ion Engine Light Ion Engine Light Ion Engine Light Treads Light Treads Structural Scanner Light Armor Plating Small Laser Small Laser Mining Claw [Rating: 8] Favorites ----------- Power Light Ion Engine Engine Light Ion Engine Propulsion Compact Wheel Treads Light Treads Wheel Compact Wheel Utility High-capacity Storage Unit Device Structural Scanner Storage High-capacity Storage Unit Protection Light Armor Plating Weapon Light Assault Rifle Energy Gun Small Laser Ballistic Gun Light Assault Rifle Build | -11 -10 ------- Run | Yrd Mat Slots Evolved . | . . Power . | . . Propulsion . | . . Utility . | . . Weapon . | . . Parts Attached 16 | 5 11 Power 2 | 1 1 Engine 2 | 1 1 Core . | . . Reactor . | . . Propulsion 4 | 2 2 Treads 2 | 1 1 Leg . | . . Wheel 2 | 1 1 Hover . | . . Flight . | . . Utility 6 | . 6 Device 1 | . 1 Storage 4 | . 4 Processor . | . . Hackware . | . . Protection 1 | . 1 Artifact . | . . Weapon 4 | 2 2 Energy Gun 2 | 1 1 Energy Cannon . | . . Ballistic Gun 2 | 1 1 Ballistic Cannon . | . . Launcher . | . . Special Weapon . | . . Impact Weapon . | . . Slashing Weapon . | . . Piercing Weapon . | . . Special Melee Weapon . | . . Unidentified Prototypes . | . . Parts Lost 4 | . 4 Power 1 | . 1 Propulsion 1 | . 1 Utility 1 | . 1 Weapon 1 | . 1 Highest Loss Streak 2 | . 2 To Critical Strikes . | . . Average Backups 7 | 2 8 Power 2 | . 2 Propulsion 1 | 1 1 Utility 1 | . 1 Weapon 2 | . 2 Tool/Special . | . . Unused Backups 6 | . 6 Power 2 | . 2 Propulsion . | . . Utility 3 | . 3 Weapon 1 | . 1 Tool/Special . | . . Average Slot Usage (%) 94 | . 94 Engine 13 | . 13 Treads 12 | . 12 Wheel 15 | . 15 Device 8 | . 8 Storage 13 | . 13 Protection 2 | . 2 Energy Gun 4 | . 4 Ballistic Gun 23 | . 23 Peak Build Rating 8 | 5 8 Average Rating 6 | 3 7 On Entrance 2 | . 5 Avg Prop Armor Cover (%) 3 | 3 . Naked Turns . | . . Heaviest Build 46 | 5 46 Greatest Support 40 | 20 40 Greatest Overweight (x) 2 | . 2 Average Overweight (x) . | . . Largest Inventory Capacity 25 | 5 25 Average Capacity 15 | 5 16 Most Carried 10 | 5 10 Average Carried 7 | 3 8 Final Capacity 20 | 5 20 Final Carried 8 | 5 8 Class Distribution -------------------- 100% | Mutant Dominant Class ---------------- Mutant | -10/Materials Resources | -11 -10 ----------- Run | Yrd Mat Matter Collected 474 | 220 254 Remotely . | . . Salvage Created 627 | . 627 Parts 29 | . 29 Haulers Intercepted . | . . Recyclers Shooed 1 | . 1 Parts Field Recycled . | . . Retrieved Matter . | . . Parts Self-Destructed . | . . Prevented . | . . Parts Restored . | . . Kills | -11 -10 ------- Run | Yrd Mat Combat Hostiles Destroyed 13 | . 13 Guns 13 | . 13 Classes Destroyed 4 | . 4 Builder 1 | . 1 Recycler 2 | . 2 Swarmer 3 | . 3 Grunt 10 | . 10 Best Kill Streak 4 | . 4 Combat Bots Only 3 | . 3 Max Kills in Single Turn 1 | . 1 Gunslinging . | . . Exploded . | . . Melee . | . . Uniques/NPCs Destroyed . | . . Combat | -11 -10 -------- Run | Yrd Mat Hostile Shots Fired 115 | . 115 Missed 34 | . 34 Hits 81 | . 81 Projectile 81 | . 81 Critical Strikes 1 | . 1 Damage Taken 963 | . 963 Core 263 | . 263 Absorbed by Shields . | . . Core Remaining (%) 100 | 100 . Volleys Fired 75 | . 75 Largest 2 | . 2 Hottest 60 | . 60 Shots Fired 148 | . 148 Gun 148 | . 148 Cannon . | . . Launcher . | . . Special . | . . Kinetic 114 | . 114 Thermal 34 | . 34 Explosive . | . . Electromagnetic . | . . Robot Hit Streak 11 | . 11 Robot Miss Streak 3 | . 3 Penetration Max . | . . Secondary Targets 3 | . 3 Max Gunslinging Chain 1 | . 1 Shots Hit Robots 97 | . 97 Core Hits 42 | . 42 Critical Kills 1 | . 1 Critical Parts Destroyed 1 | . 1 Critical Strikes 2 | . 2 Destroy 2 | . 2 Melee Attacks . | . . Impact . | . . Slashing . | . . Piercing . | . . Sneak Attacks . | . . Combat Hostiles . | . . Follow-up Attacks . | . . Damage Inflicted 844 | . 844 Guns 842 | . 842 Cannons . | . . Explosions . | . . Melee . | . . Ramming 2 | . 2 Kinetic 634 | . 634 Thermal 208 | . 208 Explosive . | . . Electromagnetic . | . . Impact . | . . Slashing . | . . Piercing . | . . Highest Corruption 2 | . 2 Average Corruption 2 | . 2 Corruption Purged . | . . Corruption Blocked . | . . Effects 13 | . 13 Message Errors 3 | . 3 Matter Fused 3 | . 3 Heat Flow Errors 2 | . 2 Energy Discharges 4 | . 4 Data Loss (major) 1 | . 1 Overload Shots . | . . Overflow Damage . | . . Projectiles . | . . Explosions . | . . Melee . | . . Knockbacks . | . . Impact . | . . Kinetic . | . . Secondary . | . . Self-Inflicted Damage 1 | . 1 Shots . | . . Rammed 1 | . 1 Targets Rammed 1 | . 1 Kicked . | . . Crushed . | . . Highest Temperature 247 | . 247 Average Temperature 68 | . 68 Received Heat Transfer 528 | . 528 Siege Activations . | . . Martial Activations . | . . Shielding Activations . | . . Robots Disrupted . | . . Combat Hostiles . | . . Robots Corrupted . | . . Combat Hostiles . | . . Parts Fried . | . . Impact Corruptions . | . . Robots Melted . | . . Combat Hostiles . | . . Parts Melted . | . . Heat Transferred 475 | . 475 Parts Sabotaged . | . . Parts Stolen . | . . Parts Stripped . | . . Power Chain Reactions . | . . Alert | -11 -10 ------- Run | Yrd Mat Maximum Alert Level . | . . Low Security (%) 100 | 100 100 Level 1 . | . . Level 2 . | . . Level 3 . | . . Level 4 . | . . Level 5 . | . . High Security . | . . Max Security . | . . Peak Influence 105 | . 105 Initial . | . . Average 26 | . 28 Influence Increases 330 | . 330 Destroy 0b10 Robot/C 260 | . 260 Destroy 0b10 Robot/NC 15 | . 15 Destroy Leader 40 | . 40 Lose Combat Pursuer 15 | . 15 Influence Decreases 297 | . 297 Time Decay 277 | . 277 Lost Part 20 | . 20 Squads Dispatched 2 | . 2 Investigation 2 | . 2 Extermination . | . . Reinforcement . | . . Assault . | . . Garrison . | . . Intercept . | . . Searches Triggered . | . . Construction Impeded . | . . Haulers Reinforced . | . . Active Scanning Responses . | . . Cargo Convoy Interrupts . | . . Stealth | -11 -10 --------- Run | Yrd Mat Distress Signals 2 | . 2 Communications Jammed . | . . Distress Signals . | . . Times Spotted 25 | . 25 Peak Tracking Total 6 | . 6 Tactical Retreats 1 | . 1 Traps | -11 -10 ------- Run | Yrd Mat Traps Triggered 2 | . 2 Indirectly . | . . Trap Hack Attempts . | . . Triggered . | . . Disarmed . | . . Reprogrammed . | . . Reused . | . . Traps Extracted . | . . Installed . | . . Triggered . | . . Machines | -11 -10 ---------- Run | Yrd Mat Machines Disabled . | . . Max in Single Turn . | . . Machines Repaired . | . . Machines Dismantled . | . . Machines Sabotaged . | . . Overloaded Fab Kills . | . . Hacking | -11 -10 --------- Run | Yrd Mat Machines Accessed . | . . Terminals . | . . Fabricators . | . . Repair Stations . | . . Recycling Units . | . . Scanalyzers . | . . Garrison Access . | . . Total Hacks . | . . Successful . | . . Failed . | . . Catastrophic . | . . Database Lockouts . | . . Manual . | . . Terminals . | . . Fabricators . | . . Repair Stations . | . . Recycling Units . | . . Scanalyzers . | . . Garrison Access . | . . Terminal Hacks . | . . Fabricator Hacks . | . . Repair Station Hacks . | . . Recycling Unit Hacks . | . . Scanalyzer . | . . Garrison Access Hacks . | . . Unauthorized Hacks . | . . Terminals . | . . Fabricators . | . . Repair Stations . | . . Recycling Units . | . . Scanalyzers . | . . Garrison Access . | . . Data Cores Recovered . | . . Used . | . . Hacking Detections . | . . Full Trace Events . | . . Feedback Events . | . . Feedback Blocked . | . . Robot Schematics Acquired . | . . Robots Built . | . . Authchips . | . . Time . | . . Total Robot Build Rating . | . . Part Schematics Acquired . | . . Parts Built . | . . Authchips . | . . Time . | . . Total Part Build Rating . | . . Part Studies Acquired . | . . Parts Repaired . | . . Time . | . . Parts Recycled . | . . Recycled Matter . | . . Retrieved Matter . | . . Retrieved Components . | . . Parts Scanalyzed . | . . Part Schematics Acquired . | . . Parts Damaged . | . . Bothacking | -11 -10 ------------ Run | Yrd Mat Used RIF Installer . | . . Robots Hacked . | . . Non-combat . | . . Combat . | . . Robot Hacks Applied . | . . Relay Couplers Released . | . . Fabnet Peak Effective % . | . . Robots Rewired . | . . Allies Hacked . | . . Hacks Repelled . | . . Allies | -11 -10 -------- Run | Yrd Mat Total Allies . | . . Largest Group . | . . Highest-Rated Group . | . . Highest-Rated Ally . | . . Total Orders . | . . Ally Attacks . | . . Total Damage . | . . Kills . | . . Allies Corrupted . | . . Allies Melted . | . . Intel | -11 -10 ------- Run | Yrd Mat Active Infowar (turns) 667 | . 667 Structural 667 | . 667 Robot Analysis Total . | . . Derelict Logs Recovered . | . . Drone Launches . | . . Drone Recoveries . | . . Exploration | -11 -10 ------------- Run | Yrd Mat Turns Passed 1183 | 83 1100 Spaces Moved 630 | 57 573 Core 21 | 21 . Treads 202 | 36 166 Legs . | . . Wheels 407 | . 407 Hover . | . . Flight . | . . Fastest Speed 50 | 50 100 Average Speed 141 | 119 144 Slowest Speed 240 | 160 240 Overloaded Moves . | . . Propulsion Burnouts . | . . Robots Hopped . | . . Potential Cave-ins . | . . Cave-ins Triggered . | . . Exploration Rate (%) 37 | 4 71 Regions Visited 1 Branch Regions . Pre-discovered Areas . | . . Known Exits Taken . | . . Unknown Exits Taken 1 | 1 . Scrap Searched . | . . Spaces Dug . | . . Terrain Destroyed . | . . Melee . | . . Projectile . | . . AOE . | . . Terrain Rammed . | . . Walls Destroyed . | . . Machines Disabled . | . . Actions | -11 -10 --------- Run | Yrd Mat Total 794 | 72 722 Wait 45 | 1 44 Move 629 | 56 573 Hop . | . . Pick Up 23 | 10 13 Fast Attach . | . . Attach 13 | 5 8 Detach . | . . Swap 4 | . 4 Drop 4 | . 4 Fire 75 | . 75 Melee . | . . Ram 1 | . 1 Kick . | . . Crush . | . . Escape Stasis . | . . Rewire . | . . Trap . | . . Miscellaneous . | . . Route ------- -11/Scrapyard -10/Materials (discovered 3 exits: [*Mat] / [*Min] / [*Sub]) History --------- Turn | Location | Event 38 | -11/Scrapyard | Discovered new exit (range 16) 84 | -11/Scrapyard | Entered Materials 303 | -10/Materials | Build established: Mutant 580 | -10/Materials | Discovered new exit (range 14) 652 | -10/Materials | Core integrity fell below 50% 758 | -10/Materials | Discovered new exit (range 13) 842 | -10/Materials | Discovered new exit (range 8) 1018 | -10/Materials | Core integrity fell below 20% 1184 | -10/Materials | Destroyed by G-47 Trooper with Particle Gun Last Messages --------------- 01088_ G-34 Mercenary destroyed. 01091_ Acquired 42 matter. 01104_ R-06 Scavenger collects Sml. Laser. 01109_ R-06 Scavenger collects Aluminum Leg. 01113_ R-06 Scavenger collects Com. Wheel. 01113_ Acquired 1 matter. 01114_ R-06 Scavenger collects Sml. Laser. 01117_ UJKWUDWCT9HRWYNU&BSG4I8AX 01124_ Acquired 2 matter. 01127_ Acquired 1 matter. 01153_ System corrupted: Matter fused (-10). 01157_ W-16 Scout sends out distress signal. 01168_ K-01 Serf cleans the Purification Channel. 01173_ U-05 Engineer suffers critical hit (Destroy). 01173_ U-05 Engineer destroyed. 01175_ K-01 Serf collects debris. 01183_ System corrupted: Energy discharge (-30). Map ----- +----------------------------------------------------+ | ???????## #####+################ | | ???????## # ??? ????????????# | | ???????## # ???""????????????# | | ???????## # ???""????????????# | | ???????## # ?????????????????# | | ???????## # ?????????????????# | | ######### # ?????????????????# | | # %=!# # ?????????????????# | | # =%[# # ?????????????????# | | # """"" # # ?????????????????### | | # """""%# ##################### | | # """"" # ##################### | | # + % % % + | | # """"" # % ##################### | | # """"" ##%### ########## | | # """"" ## ###?????????????????## | | ?? ##%##??????????????????## | | ?? ## ##??????????????????## | | ?######### ##??????????????????### | | ????????## ##??????????????????### | | ????????## ##????????????????????? | | ????###### ### ??????????? | | ????###### #######+####??????????? | | ????## g !%! ##??????????? | | ????## ggk=!g ##??????????? | | ????## @" "u ??????? | | ????## """ """ ###??????? | | ????## "" "" ###??????? | | ????### w""" """ ## ##???????? | | ???? # "" "" ## ##???????? | | ????? + """ """ ? ##??????????? | | ????? # """ """??? ##??????????? | | ????" # ??? """ ?? ##??????????? | | ????" # ??? ??????????????????? | | ??? # ??? ??????????????????? | | ??? ? # ???? ?????????????????? | | ????? ##????### ?????????????????? | | ???????????? ?????????????????? | | ?????????????????????????????????? | | ?????????????????????????????????? | | ?????????????????????????????????? | | ?????????????????????????????????? | | ?????????????????????????????????? | | ?????????????????????????????????? | | ?????????????????????????????????? | | ?????????????????????????????????? | | ?????????????????????????????????? | | ?????????????????????????????????? | | ?????????????????????????????????? | | ?????????????????????????????????? | +----------------------------------------------------+ Best States ------------- Heat Dissipation 25 Energy Generation 10 Energy Capacity 125 Matter Stores 300 Matter Capacity 300 Sight Range 16 Terrain Scan Density 10 Armor Coverage 150 Evasion (%) 40 Recoil Reduction 2 Item Schematics ----------------- None Robot Schematics ------------------ None Fabricated ------------ Nothing Repaired ---------- Nothing Studied --------- None Alien Tech Used ----------------- None Achievements -------------- None Challenges ------------ None Game ------ Seed NetworkedDecoderMegashotty Manual? 0 Play Time 00:10:19 Cumulative 71.5 hours Start 2025.12.15 @ 19:11:37 End 2025.12.15 @ 21:52:21 Sessions 2 Manual Loads 0 Difficulty Rogue Special Mode None Game No. 134 Rogue 134 Adventurer 0 Explorer 0 Win Type - Total 0 Types 0/0/0/0/0/0/0/0/0/0 Lore% 14 Gallery% 38 Achievement% 18 Wizard Run 0 Options --------- Layout 1 ASCII 0 Keyboard 0 Movement Mouse Keybinds 0 Fullscreen 2 Font 32/SmallcapsGlow Map View 50x35 Zoom Use 0% Tactical HUD 1 Map Filters NONE Filters NONE Steam 1 RUN: 07d6d751-f271-4e96-9f96-1cdb758fbadf